bitfinex-derivatives/quotes_ETHF0:USTF0_20260207
["timestamp","ask_amount","ask_price","bid_price","bid_amount"]
[1770463188525,9.4222103,2014.1,2013.6,8.74924872]
[1770463188726,9.4222103,2014.1,2013.5,8.99770872]
[1770463191030,0.00422116,2014.1,2013.5,8.99770872]
[1770463192140,9.41798914,2014.5,2013.5,8.99770872]
[1770463193137,9.42227672,2014.5,2013.5,8.99770872]
[1770463194730,9.42227672,2014.5,2013.7,8.74924872]
[1770463195131,9.42227672,2014.5,2013.7,8.99768872]
[1770463196343,9.42227672,2014.5,2013.7,0.24844]
[1770463196933,9.42227672,2014.5,2013.7,8.99768872]
[1770463200837,8.89030121,2015.5,2012.9,0.42660035]
[1770463200838,9.41798914,2014.9,2014.1,8.74924872]
[1770463201536,9.41798914,2015.7,2014.4,8.74924872]
[1770463201937,9.42419985,2015.7,2014.4,8.75324211]
[1770463202139,9.67238985,2015.7,2014.4,0.00399339]
[1770463203248,17.10928103,2015.7,2014.4,0.00399339]
[1770463203437,9.41798914,2015.6,2014.4,0.00399339]
[1770463203938,9.41798914,2015.6,2014.4,8.75324211]
[1770463204145,9.41798914,2015.6,2014.6,8.99756872]
[1770463204538,9.41798914,2015.6,2014.6,0.24832]
[1770463204942,9.41798914,2015.6,2014.6,8.99756872]
[1770463205145,9.41798914,2015.6,2014.6,0.24832]
[1770463205539,9.41798914,2015.6,2014.6,8.99756872]
[1770463206937,9.41798914,2015.6,2014.4,0.00399339]
[1770463207146,9.66619914,2015.6,2014.4,0.00399339]
[1770463207543,9.41798914,2015.6,2014.6,0.24832]
[1770463207742,9.41798914,2015.6,2014.8,0.2483]
[1770463208740,9.41798914,2015.6,2014.4,0.00399339]
[1770463209140,9.41798914,2015.6,2014.5,9.29501003]
[1770463210644,9.41798914,2015.6,2014.7,8.528617]
[1770463213247,9.41798914,2015.6,2014.6,0.24832]
[1770463213453,9.41798914,2015.6,2014.6,8.776937]
[1770463214745,9.41798914,2015.6,2014.6,8.528617]
[1770463214949,9.41798914,2015.6,2014.4,8.53261039]
[1770463219653,7.43689118,2015.5,2014.4,8.53261039]
[1770463219955,9.10639288,2015.4,2014.4,8.53261039]
[1770463221353,9.10639288,2015.3,2014.4,8.53261039]
[1770463223153,9.10639288,2015.3,2014.4,0.00399339]
[1770463223552,9.10639288,2015.3,2014.4,8.53261039]
[1770463225552,9.10639288,2015.6,2014.9,8.528617]
[1770463225753,9.11260359,2015.7,2014.9,8.528617]
[1770463236952,9.11260359,2015.7,2014.6,2.96073215]
[1770463236953,9.11260359,2015.7,2014.6,8.61322235]
[1770463237352,9.11260359,2015.7,2014.4,0.00399339]
[1770463237658,8.37013349,2015.5,2014.4,0.00399339]
[1770463238762,15.77897347,2015.5,2014.4,0.00399339]
[1770463238963,8.37013349,2015.4,2014.4,0.00399339]
[1770463239363,8.37013349,2015.4,2014.4,8.61721574]
[1770463242664,8.37013349,2015.4,2014.4,8.86555574]
[1770463245664,8.37013349,2015.4,2014.6,8.61322235]
[1770463248971,8.37013349,2015.4,2014.5,0.24834]
[1770463249362,8.37013349,2015.4,2014.5,8.86156235]
[1770463250370,8.37013349,2015.1,2013.6,2.93395958]
[1770463250557,8.37013349,2015.0,2013.7,8.61322235]
[1770463250762,8.37013349,2014.9,2013.7,8.61322235]
[1770463251171,8.37013349,2014.8,2013.7,8.61322235]
[1770463251467,8.37013349,2014.8,2013.7,8.6191367]
[1770463251669,8.37013349,2014.8,2013.7,8.8675767]
[1770463254067,8.37013349,2014.9,2014.2,8.61322235]
[1770463255470,8.37013349,2015.0,2014.2,8.86159235]
[1770463259877,8.37013349,2015.0,2014.2,0.24837]
[1770463260077,8.37013349,2015.0,2014.0,8.61322235]
[1770463260772,8.37013349,2015.0,2013.8,8.61322235]
[1770463261073,8.37013349,2014.8,2013.8,8.61322235]
[1770463261272,15.77897347,2014.8,2013.7,0.25435435]
[1770463261474,8.37013349,2014.7,2013.7,0.25435435]
[1770463261866,8.37013349,2014.7,2013.7,8.8675767]
[1770463263467,8.37013349,2014.7,2013.7,0.25435435]
[1770463263669,8.37013349,2014.6,2013.7,0.00591435]
[1770463264977,8.37013349,2014.0,2013.0,8.61322235]
[1770463265167,8.37013349,2014.0,2012.9,9.03351521]
[1770463265373,8.37013349,2014.0,2013.1,8.61322235]
[1770463265572,8.37013349,2014.0,2013.3,8.61322235]
[1770463265773,8.37013349,2014.0,2013.2,9.21793434]
[1770463265976,8.3758468,2014.0,2013.3,0.00570781]
[1770463267980,8.90750628,2013.9,2012.9,0.42029286]
[1770463268180,8.90750628,2013.9,2012.8,8.96944434]
[1770463268772,8.90750628,2013.9,2012.8,8.97411574]
[1770463268977,8.90750628,2013.9,2012.8,9.4280573]
[1770463273685,8.90750628,2013.9,2012.8,9.6766073]
[1770463280284,8.90750628,2013.9,2013.1,0.24851]
[1770463280488,8.90750628,2013.9,2013.2,8.80383663]
[1770463285593,8.90750628,2013.9,2013.1,0.24851]
[1770463286192,8.90750628,2013.9,2012.8,9.26244959]
[1770463288597,8.86812287,2013.8,2012.8,9.26244959]
[1770463289297,8.86812287,2013.7,2012.8,9.51098959]
[1770463292994,8.86812287,2013.7,2012.9,8.80383663]
[1770463293291,8.06050994,2013.7,2012.9,8.80383663]
[1770463301105,8.06050994,2013.7,2012.9,9.05236663]
[1770463301307,8.59429604,2013.9,2013.1,9.03084423]
[1770463301511,8.59429604,2013.9,2013.3,9.03084423]
[1770463301908,8.59429604,2013.9,2013.3,9.27933423]
[1770463302913,8.59429604,2013.9,2013.5,9.03084423]
[1770463303307,7.78677686,2013.9,2013.5,9.03084423]
[1770463306508,7.78677686,2013.9,2013.4,9.27931423]
[1770463306812,7.78677686,2013.9,2013.4,0.24847]
[1770463308914,7.78677686,2013.9,2013.4,9.27931423]
[1770463309616,7.78677686,2013.9,2013.4,0.24847]
[1770463310010,7.78677686,2013.9,2013.1,9.03084423]
[1770463310311,8.59429604,2013.8,2012.9,9.03084423]
[1770463310512,8.59429604,2013.7,2012.9,9.03084423]
[1770463311810,8.59429604,2013.9,2013.4,9.03084423]
[1770463312915,8.59429604,2013.9,2013.3,0.24848]
[1770463315121,8.59429604,2013.9,2013.3,9.27932423]
[1770463316620,8.59429604,2013.9,2013.2,9.03084423]
[1770463320818,8.59429604,2013.9,2013.1,9.27935423]
[1770463321025,8.59429604,2013.9,2013.3,9.03084423]
[1770463326915,16.00313602,2013.9,2012.9,8.48338072]
[1770463327115,8.29630872,2013.4,2012.3,2.95332281]
[1770463327321,8.29630872,2013.3,2012.4,8.48338072]
[1770463327520,8.29630872,2013.2,2012.4,8.48338072]
[1770463327722,14.24639092,2013.2,2012.4,8.48338072]
[1770463328028,8.29630872,2013.1,2012.6,8.48338072]
[1770463328232,14.24639092,2013.3,2012.6,8.73613481]
[1770463328427,8.29630872,2013.2,2012.6,8.73613481]
[1770463328728,8.29630872,2013.2,2012.6,9.15132199]
[1770463329228,5.9500822,2013.3,2012.8,8.48338072]
[1770463329527,8.29630872,2013.4,2012.8,8.48338072]
[1770463330125,8.29630872,2013.4,2012.8,8.73192072]
[1770463330328,14.15971921,2013.6,2013.0,8.99497231]
[1770463331618,8.20963701,2013.6,2013.0,9.24349231]
[1770463331825,14.15971921,2013.8,2013.0,9.24349231]
[1770463332025,14.15971921,2013.8,2013.2,8.99497231]
[1770463332226,8.20963701,2013.8,2013.2,8.99497231]
[1770463333327,8.20963701,2013.8,2013.1,0.24851]
[1770463333526,8.20963701,2013.7,2013.1,0.24851]
[1770463334330,8.20963701,2013.7,2013.1,9.24348231]
[1770463334630,8.20963701,2013.6,2013.1,9.24348231]
[1770463335527,8.20963701,2013.7,2013.3,8.99497231]
[1770463337531,8.20963701,2013.7,2013.2,9.24347231]
[1770463340532,14.15971921,2013.9,2013.2,9.24347231]
[1770463340737,8.20963701,2013.8,2013.2,9.24347231]
[1770463342840,14.15971921,2013.8,2013.2,0.2485]
[1770463343034,8.20963701,2013.7,2013.2,0.2485]
[1770463345437,8.20963701,2013.7,2012.7,2.95332281]
[1770463345639,8.20963701,2013.2,2012.7,8.99497231]
[1770463345839,8.20963701,2013.4,2013.0,8.99497231]
[1770463347541,8.20963701,2013.5,2013.0,8.99497231]
[1770463351145,5.9500822,2013.4,2012.6,9.41434358]
[1770463351342,8.20963701,2013.2,2012.6,9.41434358]
[1770463351839,8.20963701,2013.2,2012.6,0.41937127]
[1770463352040,8.20963701,2013.2,2012.6,9.41434358]
[1770463353340,5.9500822,2013.1,2012.6,9.41434358]
[1770463353538,14.15971921,2013.1,2012.6,9.41434358]
[1770463353740,8.20963701,2013.0,2012.6,9.41434358]
[1770463354941,8.20963701,2013.0,2012.6,0.41937127]
[1770463355944,8.20963701,2013.0,2012.4,9.24356231]
[1770463356143,8.20963701,2013.0,2012.4,0.24859]
[1770463356446,8.20963701,2013.0,2012.4,8.4867853]
[1770463356648,8.20963701,2013.0,2012.4,0.24859]
[1770463356845,8.20963701,2013.0,2012.4,0.2524266]
[1770463357040,8.71146484,2012.6,2011.9,8.4868553]
[1770463357246,8.71146484,2012.5,2011.9,0.24866]
[1770463358045,8.71731687,2012.5,2011.9,0.25281872]
[1770463358250,8.71731687,2012.5,2011.9,0.64269953]
[1770463358548,8.71731687,2012.5,2011.9,8.88089483]
[1770463360141,0.00585203,2012.5,2012.0,0.24864]
[1770463360345,0.00585203,2012.5,2012.0,8.4868353]
[1770463360952,0.00585203,2012.5,2011.9,2.55572659]
[1770463360953,8.71146484,2012.8,2012.3,8.2381953]
[1770463361251,2.16168706,2013.4,2012.5,8.2381953]
[1770463361252,8.71146484,2013.0,2012.5,8.2381953]
[1770463361946,8.71602248,2013.0,2012.5,8.2381953]
[1770463362946,0.00455764,2013.0,2012.5,8.2381953]
[1770463364253,8.71602248,2013.0,2012.5,8.2381953]
[1770463365753,8.71602248,2013.0,2012.6,0.24857]
[1770463365948,8.71602248,2013.0,2012.6,8.4867653]
[1770463367053,8.71602248,2013.0,2012.3,8.2381953]
[1770463367850,8.71602248,2013.0,2012.2,8.2381953]
[1770463368254,8.71602248,2013.0,2012.1,0.24863]
[1770463368454,8.71602248,2013.0,2011.9,0.39403953]
[1770463368455,8.71146484,2012.7,2011.9,0.39403953]
[1770463369654,8.71146484,2012.7,2011.9,8.63223483]
[1770463370348,8.71146484,2012.6,2011.9,8.63223483]
[1770463371351,8.71146484,2012.6,2011.9,0.39403953]
[1770463372354,14.66154704,2012.6,2011.9,0.39403953]
[1770463372552,8.71146484,2012.4,2011.9,0.39403953]
[1770463373153,8.71146484,2012.4,2011.9,0.00415872]
[1770463373854,8.71146484,2012.4,2011.9,8.24235402]
[1770463375356,8.71146484,2012.4,2011.9,0.00415872]
[1770463375560,14.66154704,2012.2,2011.6,0.39000487]
[1770463375861,14.66154704,2012.2,2011.4,8.2381953]
[1770463375862,8.71146484,2012.1,2011.4,8.2381953]
[1770463376562,8.71146484,2012.1,2011.4,8.24299897]
[1770463377256,8.71146484,2012.1,2011.4,0.00480367]
[1770463378563,8.71146484,2012.1,2011.4,8.24299897]
[1770463379465,8.71146484,2012.1,2011.4,0.00480367]
[1770463379655,8.71146484,2012.1,2011.4,0.39759638]
[1770463381862,8.71146484,2012.0,2011.4,0.39759638]
[1770463382566,8.71146484,2012.0,2011.4,0.00480367]
[1770463382765,5.9500822,2012.1,2011.4,8.64929218]
[1770463382965,8.71146484,2012.7,2012.2,8.4868153]
[1770463383167,8.71146484,2012.7,2011.6,8.4868853]
[1770463383362,8.71146484,2012.6,2011.6,8.4868853]
[1770463383667,8.71146484,2012.6,2012.0,8.2381953]
[1770463384564,8.71146484,2012.9,2012.0,8.4868353]
[1770463391469,8.71146484,2012.9,2011.4,3.60852288]
[1770463391669,8.97738703,2012.6,2011.5,9.00891729]
[1770463392276,8.97738703,2012.5,2011.4,9.66872417]
[1770463392775,8.97738703,2012.4,2011.4,9.66872417]
[1770463395274,8.97738703,2012.2,2011.4,0.00480367]
[1770463395470,8.97738703,2012.1,2011.4,0.00480367]
[1770463396483,8.97738703,2012.1,2011.4,0.38196621]
[1770463397981,16.38622701,2012.1,2011.4,0.38196621]
[1770463398178,8.97738703,2012.0,2011.4,0.38196621]
[1770463398379,8.97738703,2012.0,2011.4,9.3908835]
[1770463400081,8.97738703,2012.0,2011.4,0.38196621]
[1770463400386,8.97738703,2012.0,2011.4,9.3908835]
[1770463400679,8.97738703,2012.0,2011.4,0.38196621]
[1770463401893,8.97738703,2012.0,2011.4,9.3908835]
[1770463402090,8.97738703,2012.0,2011.4,0.38196621]
[1770463402984,14.91642747,2012.0,2011.4,0.38196621]
[1770463403187,8.97738703,2011.9,2011.4,0.38196621]
[1770463408397,8.97738703,2011.9,2011.4,9.3908835]
[1770463408895,8.97738703,2012.1,2011.4,9.6396035]
[1770463410493,8.97738703,2012.1,2011.4,0.63068621]
[1770463411186,8.97738703,2012.1,2011.4,9.6396035]
[1770463415196,14.91642747,2012.1,2011.4,9.6396035]
[1770463415401,8.97738703,2012.0,2011.4,9.6396035]
[1770463415898,8.97738703,2012.0,2011.4,0.63068621]
[1770463416698,8.97738703,2012.0,2011.4,9.51229416]
[1770463418800,8.41794546,2011.9,2011.4,9.51229416]
[1770463420095,8.41794546,2011.8,2011.4,9.51229416]
[1770463420296,7.609583,2011.8,2011.4,9.51229416]
[1770463424999,8.41794546,2011.7,2011.0,8.88160795]
[1770463425208,8.41794546,2011.6,2011.0,8.88160795]
[1770463425502,8.41794546,2011.5,2011.0,8.88160795]
[1770463426204,8.42384661,2011.5,2011.0,9.26222552]
[1770463430306,7.61539223,2011.5,2011.0,9.26222552]
[1770463432509,8.41794546,2011.4,2011.0,9.26222552]
[1770463433407,14.36288705,2011.5,2011.0,9.26222552]
[1770463433608,8.42384661,2011.5,2011.0,9.26222552]
[1770463439817,8.42384661,2011.5,2010.4,4.40423076]
[1770463439818,8.41794546,2011.3,2010.6,8.88160795]
[1770463440014,8.41794546,2011.2,2010.6,8.88160795]
[1770463440415,8.41794546,2011.2,2010.4,0.24884]
[1770463440416,8.41794546,2011.1,2010.4,9.13044795]
[1770463440609,8.41794546,2011.0,2010.4,9.13044795]
[1770463440809,8.41794546,2011.0,2010.4,0.00413516]
[1770463440810,8.41794546,2010.9,2010.4,0.00413516]
[1770463441110,14.3569859,2010.8,2010.1,0.39246726]
[1770463441314,8.41794546,2010.5,2009.9,0.32816122]
[1770463442013,8.41794546,2010.5,2009.9,9.20976917]
[1770463442312,8.41794546,2010.7,2009.9,9.21566732]
[1770463443113,8.41794546,2010.7,2009.9,9.60481244]
[1770463443412,8.41794546,2010.4,2009.9,0.47430449]
[1770463444713,8.41794546,2010.4,2009.9,9.35591244]
[1770463447110,8.41794546,2010.4,2009.9,0.47430449]
[1770463447516,8.41794546,2010.4,2009.9,8.62896177]
[1770463448016,8.41794546,2010.4,2009.9,0.47430449]
[1770463449716,8.41794546,2010.4,2009.6,0.24894]
[1770463450218,8.41794546,2010.4,2009.6,8.95491529]
[1770463452521,8.41794546,2010.4,2009.6,9.34481843]
[1770463452723,8.41794546,2010.4,2009.6,0.63884314]
[1770463453220,8.41794546,2010.4,2009.6,9.34481843]
[1770463454919,8.41794546,2010.4,2009.2,8.70597529]
[1770463455126,8.33546418,2010.1,2009.0,8.70597529]
[1770463455326,8.33546418,2010.1,2009.0,8.95499529]
[1770463457420,8.33546418,2010.1,2009.0,9.37384333]
[1770463459622,8.33546418,2010.0,2009.0,9.12482333]
[1770463459820,8.33979348,2010.0,2009.0,9.12482333]
[1770463463016,8.33979348,2010.0,2008.9,8.70597529]
[1770463463221,8.33546418,2009.8,2008.7,8.95502529]
[1770463463428,8.33546418,2009.8,2008.9,8.70597529]
[1770463464222,8.33546418,2009.8,2008.7,0.24905]
[1770463464223,8.33546418,2009.7,2008.7,0.24905]
[1770463464529,8.33546418,2009.4,2008.3,8.70597529]
[1770463464823,8.33546418,2009.3,2008.3,8.70597529]
[1770463465218,8.33546418,2009.3,2008.3,9.38707201]
[1770463465421,8.33546418,2009.3,2008.5,8.70597529]
[1770463466227,8.33546418,2009.7,2008.5,8.95505529]
[1770463467421,8.33546418,2009.7,2008.6,8.70597529]
[1770463468230,8.33546418,2009.6,2008.6,8.70597529]
[1770463468831,8.33546418,2009.6,2008.6,10.87511676]
[1770463469018,8.33546418,2009.6,2008.6,11.12418676]
[1770463469224,8.33546418,2009.6,2008.7,8.70597529]
[1770463470726,8.33546418,2009.6,2008.7,8.95502529]
[1770463471526,8.33546418,2009.6,2008.9,0.24903]
[1770463471733,7.41316928,2010.0,2009.2,8.95496529]
[1770463471734,8.33546418,2009.9,2009.2,8.95496529]
[1770463473130,8.33546418,2010.3,2009.6,8.95491529]
[1770463474124,8.33998794,2010.3,2009.6,0.25332287]
[1770463474333,8.33546418,2010.0,2009.2,8.70597529]
[1770463476234,7.29868895,2009.8,2009.1,7.21869006]
[1770463478632,7.29868895,2009.8,2009.0,0.24901]
[1770463479129,7.29868895,2009.7,2009.0,0.24901]
[1770463479529,7.29868895,2009.7,2009.0,7.46770006]
[1770463479734,7.29868895,2009.7,2008.5,7.46776006]
[1770463480436,7.29868895,2009.7,2008.7,7.46774006]
[1770463481437,7.29868895,2009.6,2008.7,7.46774006]
[1770463483239,7.29868895,2009.5,2008.7,7.46774006]
[1770463485032,7.29868895,2009.4,2008.7,7.46774006]
[1770463485640,7.29868895,2009.2,2008.4,7.21869006]
[1770463485835,7.29868895,2009.1,2008.4,7.21869006]
[1770463486728,7.29868895,2008.9,2008.4,7.21869006]
[1770463487336,7.29868895,2008.9,2008.3,7.65068678]
[1770463488334,7.29868895,2008.9,2008.3,0.43199672]
[1770463488541,7.29868895,2008.9,2008.2,7.46781006]
[1770463488743,13.23772939,2008.9,2008.2,0.24912]
[1770463488939,7.29868895,2008.8,2008.2,0.24912]
[1770463489135,7.30422423,2008.8,2008.2,0.24912]
[1770463489536,7.30422423,2008.8,2008.2,7.46781006]
[1770463489732,7.30422423,2008.8,2008.2,7.88293765]
[1770463491343,7.30422423,2008.8,2008.2,0.41512759]
[1770463491531,7.30422423,2008.8,2008.1,7.21869006]
[1770463491736,7.30422423,2008.8,2007.8,7.21869006]
[1770463492039,7.30422423,2008.8,2007.8,7.46786006]
[1770463493747,0.00553528,2008.8,2008.1,7.21869006]
[1770463493947,7.30422423,2008.8,2008.1,7.21869006]
[1770463494547,7.30422423,2008.8,2008.1,7.46782006]
[1770463495741,0.00553528,2008.8,2008.1,7.46782006]
[1770463496344,0.00553528,2008.8,2008.3,7.21869006]
[1770463497149,7.29868895,2008.9,2008.3,7.21869006]
[1770463497349,7.29868895,2009.1,2008.3,7.21869006]
[1770463498243,7.30323376,2009.1,2008.3,7.22422535]
[1770463503458,7.29868895,2009.0,2008.3,0.00553529]
[1770463503651,5.94358525,2009.1,2008.3,0.00553529]
[1770463503652,13.23772939,2008.9,2008.3,0.00553529]
[1770463503856,7.29868895,2008.8,2008.3,0.00553529]
[1770463504454,7.29868895,2008.8,2008.3,7.22422535]
[1770463504952,7.29868895,2008.9,2008.3,7.22422535]
[1770463505155,7.29868895,2009.0,2008.3,7.22422535]
[1770463506859,7.29868895,2009.0,2008.3,7.47333535]
[1770463507057,0.00454481,2009.1,2008.5,6.80233426]
[1770463507256,7.19120722,2009.3,2008.7,6.80233426]
[1770463507455,7.19120722,2009.3,2008.3,6.80786955]
[1770463507655,7.19120722,2009.2,2008.3,6.80786955]
[1770463508054,7.19120722,2009.2,2008.4,0.24909]
[1770463508348,7.19120722,2009.2,2008.5,6.80233426]
[1770463508349,7.19756378,2009.2,2008.5,6.80233426]
[1770463508552,0.00635656,2009.2,2008.5,7.05141426]
[1770463508752,7.19756378,2009.2,2008.5,7.05141426]
[1770463509649,7.19756378,2009.2,2008.5,0.24908]
[1770463510255,6.77001216,2009.1,2008.4,6.79273576]
[1770463511262,12.7090526,2009.0,2008.4,6.79273576]
[1770463511460,6.77001216,2008.9,2008.4,6.79273576]
[1770463512265,6.77001216,2008.9,2008.3,0.00553529]
[1770463512665,6.77001216,2008.8,2008.3,0.00553529]
[1770463513266,6.77001216,2008.8,2008.3,6.79827105]
[1770463513869,6.77001216,2008.9,2008.3,6.79827105]
[1770463514659,6.77001216,2008.8,2008.3,0.00553529]
[1770463514864,6.77001216,2008.7,2008.2,0.24911]
[1770463515069,6.77001216,2008.7,2008.2,7.04184576]
[1770463515371,6.77001216,2008.6,2008.2,7.04184576]
[1770463515871,6.77001216,2008.6,2008.1,6.79273576]
[1770463516061,5.93904044,2008.5,2008.1,0.00454481]
[1770463516262,6.77001216,2008.4,2007.8,7.20589043]
[1770463516472,6.77001216,2008.4,2007.8,0.41315467]
[1770463516659,6.77001216,2008.2,2007.7,7.04191576]
[1770463516861,6.77001216,2008.2,2007.7,6.79273576]
[1770463517060,5.93904044,2008.1,2007.3,6.79273576]
[1770463517267,6.77001216,2008.0,2007.3,7.04196576]
[1770463517472,6.77001216,2008.0,2007.3,7.50043563]
[1770463518273,6.77001216,2008.1,2007.3,7.50043563]
[1770463518671,5.93904044,2008.3,2007.5,6.79273576]
[1770463518872,12.7090526,2008.3,2007.5,6.79273576]
[1770463519071,6.77001216,2008.4,2007.5,6.79273576]
[1770463520576,6.77001216,2008.4,2007.7,6.79273576]
[1770463533490,6.77001216,2008.3,2007.7,6.79273576]
[1770463534691,6.77001216,2007.7,2007.3,7.25120563]
[1770463534995,6.77357466,2007.7,2007.3,7.25120563]
[1770463535793,12.72570337,2008.1,2007.3,7.25120563]
[1770463535999,6.78666293,2008.1,2007.5,6.49309264]
[1770463536991,6.79241942,2008.1,2007.5,6.49665514]
[1770463539197,0.00575649,2008.1,2007.5,6.49665514]
[1770463539896,6.78666293,2008.3,2007.7,6.49309264]
[1770463540499,6.78666293,2008.4,2007.7,6.74227264]
[1770463540998,6.78666293,2008.8,2008.0,6.49309264]
[1770463541297,6.78666293,2008.8,2008.2,6.49309264]
[1770463541985,6.79312117,2008.8,2008.2,6.49309264]
[1770463542192,0.00645824,2008.8,2008.2,6.49309264]
[1770463543099,6.78666293,2009.2,2008.5,6.49309264]
[1770463543288,6.78666293,2009.2,2008.5,6.74217264]
[1770463543896,6.78666293,2009.2,2008.5,0.24908]
[1770463544096,6.79068263,2009.2,2008.5,0.24908]
[1770463545198,6.79068263,2009.2,2008.5,6.74217264]
[1770463546197,6.79068263,2009.2,2008.0,6.49309264]
[1770463546491,6.78666293,2009.0,2008.0,6.49309264]
[1770463546697,6.78666293,2009.0,2008.1,6.74222264]
[1770463548001,6.78666293,2008.9,2008.1,0.24913]
[1770463548196,6.78666293,2008.9,2008.1,6.74222264]
[1770463551605,6.78666293,2008.9,2008.1,0.24913]
[1770463552201,6.78666293,2008.9,2008.1,6.74222264]
[1770463555604,6.78666293,2008.9,2008.3,6.49309264]
[1770463556204,6.78666293,2009.1,2008.3,6.74219264]
[1770463557198,6.78666293,2009.1,2008.6,6.49309264]
[1770463558599,6.79068263,2009.2,2008.6,6.49309264]
[1770463559501,8.89030121,2009.7,2008.0,2.95985394]
[1770463559502,14.19550291,2009.6,2009.0,6.49309264]
[1770463559805,6.78666293,2009.6,2009.0,6.49309264]
[1770463559998,6.78666293,2009.7,2009.0,6.74211264]
[1770463560200,6.78666293,2009.7,2008.9,6.49309264]
[1770463560399,6.78666293,2009.7,2008.5,6.74217264]
[1770463560603,6.79117161,2009.7,2008.5,6.7458059]
[1770463561007,6.78666293,2009.6,2008.5,6.7458059]
[1770463561506,6.78666293,2009.6,2008.7,6.74215264]
[1770463561899,6.78666293,2009.6,2008.9,6.49309264]
[1770463562099,0.00450868,2009.7,2008.9,6.74212264]
[1770463562300,6.79117161,2009.7,2009.2,6.49309264]
[1770463562506,0.00450868,2009.7,2009.2,6.49309264]
[1770463562805,6.79117161,2009.7,2009.2,6.49309264]
[1770463563006,6.78666293,2009.9,2009.2,6.49309264]
[1770463564102,6.79297939,2009.9,2009.2,6.49309264]
[1770463565102,0.00631646,2009.9,2009.2,6.74208264]
[1770463565797,6.78666293,2010.1,2009.4,6.38361862]
[1770463566200,6.78666293,2010.1,2009.4,6.63258862]
[1770463566401,5.82189174,2010.4,2009.6,6.38361862]
[1770463566598,5.82189174,2010.4,2009.8,0.24891]
[1770463566796,5.8263619,2010.4,2009.8,0.24891]
[1770463566998,5.8263619,2010.4,2009.8,6.63252862]
[1770463567503,5.8263619,2010.4,2009.8,0.24891]
[1770463567704,5.8263619,2010.4,2009.6,6.38361862]
[1770463567902,5.8263619,2010.4,2009.3,6.38361862]
[1770463568303,5.82189174,2010.3,2009.3,6.38361862]
[1770463569305,5.82189174,2010.3,2009.3,6.63259862]
[1770463572708,5.82189174,2010.3,2009.6,5.85058893]
[1770463574114,5.82189174,2010.3,2009.5,0.24896]
[1770463575212,5.82189174,2010.3,2008.6,4.40423076]
[1770463575213,5.82189174,2010.3,2009.0,5.85058893]
[1770463575513,6.12364357,2010.2,2009.0,5.85058893]
[1770463576106,6.12364357,2010.1,2009.0,5.85058893]
[1770463576509,6.12364357,2009.9,2009.0,5.85058893]
[1770463576908,6.12364357,2009.9,2008.9,0.24903]
[1770463577108,6.12364357,2009.9,2008.9,6.09961893]
[1770463577812,6.12364357,2009.9,2008.5,5.85422219]
[1770463578009,6.12364357,2009.6,2008.5,5.85422219]
[1770463578809,6.12364357,2009.6,2008.5,6.10330219]
[1770463581618,6.12364357,2009.6,2008.7,5.85058893]
[1770463582422,6.12364357,2009.6,2008.6,6.09965893]
[1770463583310,6.12364357,2009.5,2008.6,6.09965893]
[1770463585916,6.12364357,2009.5,2008.5,0.00363326]
[1770463585917,6.12364357,2009.5,2008.8,6.09962893]
[1770463593133,12.06799038,2009.7,2008.8,6.09962893]
[1770463593323,6.12364357,2009.6,2008.8,6.09962893]
[1770463597332,5.94434681,2009.6,2008.8,6.09962893]
[1770463597539,6.13440972,2009.5,2008.8,6.09962893]
[1770463602439,5.94434681,2009.6,2008.8,6.09962893]
[1770463602938,6.13440972,2009.5,2008.8,6.09962893]
[1770463603638,6.13440972,2009.4,2008.8,6.09962893]
[1770463605142,5.32509345,2009.4,2008.8,6.09962893]
[1770463605943,6.13440972,2009.3,2008.8,0.24904]
[1770463606138,6.13440972,2009.1,2008.5,6.02619006]
[1770463609940,2.16948108,2008.9,2008.1,7.3640847]
[1770463610141,5.94434681,2008.7,2008.2,6.0225568]
[1770463610341,7.46192323,2008.9,2008.4,6.0225568]
[1770463610342,5.94434681,2008.9,2008.4,6.0225568]
[1770463610537,12.07875653,2009.0,2008.4,6.0225568]
[1770463610742,6.13440972,2009.1,2008.4,6.2716468]
[1770463610942,6.13864978,2009.1,2008.6,6.0225568]
[1770463612643,0.00424006,2009.1,2008.6,6.0225568]
[1770463613547,6.13440972,2009.2,2008.4,6.02690485]
[1770463613746,6.13440972,2009.1,2008.4,0.00434805]
[1770463613947,12.07875653,2009.1,2008.4,6.02690485]
[1770463614148,6.13440972,2009.0,2008.4,6.02690485]
[1770463614446,6.13822412,2009.0,2008.4,6.02690485]
[1770463615247,5.3287378,2009.0,2008.4,6.02690485]
[1770463617849,5.3287378,2009.0,2008.4,0.00434805]
[1770463618043,11.27308461,2009.0,2008.4,0.00434805]
[1770463618239,6.13440972,2008.9,2008.4,0.00434805]
[1770463618443,6.13440972,2008.9,2008.4,6.02690485]
[1770463618643,6.13440972,2008.9,2008.4,0.00434805]
[1770463618947,6.13440972,2008.8,2008.4,0.00010799]
[1770463619548,6.13440972,2008.7,2008.0,6.0225568]
[1770463619746,6.13440972,2008.6,2008.0,6.0225568]
[1770463620540,5.94434681,2008.8,2008.0,6.02721928]
[1770463620745,6.13822412,2009.0,2008.4,6.0225568]
[1770463620952,5.19040972,2008.5,2008.0,6.02721928]
[1770463622347,5.19040972,2008.5,2008.0,0.00466248]
[1770463622545,6.13440972,2008.3,2007.6,6.2717468]
[1770463622752,6.13440972,2008.2,2007.5,6.0225568]
[1770463622947,6.13440972,2008.2,2007.3,0.70769987]
[1770463622948,5.94434681,2008.4,2007.7,6.0225568]
[1770463623248,1.1443,2011.2,2008.4,6.0225568]
[1770463623249,6.13440972,2008.8,2008.4,6.0225568]
[1770463623446,0.0038144,2009.0,2008.4,6.02788196]
[1770463623447,6.13822412,2009.0,2008.4,6.02788196]
[1770463625351,0.0038144,2009.0,2008.8,6.0225568]
[1770463625553,7.46192323,2009.4,2008.8,6.0225568]
[1770463625554,6.13440972,2009.4,2008.8,6.0225568]
[1770463626649,6.13835561,2009.4,2008.8,6.0225568]
[1770463627042,6.13835561,2009.4,2008.6,6.37057792]
[1770463628053,6.13835561,2009.4,2008.5,0.24908]
[1770463629553,6.13835561,2009.4,2008.5,6.61965792]
[1770463632365,6.13835561,2009.4,2008.8,5.82133972]
[1770463638365,6.13835561,2009.4,2008.7,6.07038972]
[1770463642368,0.00394589,2009.4,2008.9,5.82133972]
[1770463642957,0.00394589,2009.4,2008.9,6.07036972]
[1770463643162,6.05458329,2009.6,2008.9,6.07036972]
[1770463644268,6.05879154,2009.6,2008.9,6.07036972]
[1770463648676,6.05879154,2009.6,2009.1,5.82133972]
[1770463650169,6.05879154,2009.6,2009.0,0.24901]
[1770463651464,2.16952571,2009.5,2009.0,0.24901]
[1770463651673,6.05458329,2009.4,2009.0,0.24901]
[1770463652577,6.05458329,2009.4,2008.8,5.82133972]
[1770463653975,6.05458329,2009.4,2008.6,5.82133972]
[1770463656780,6.05458329,2009.4,2008.6,6.07040972]
[1770463656979,6.05458329,2009.4,2008.8,5.92825073]
[1770463658782,12.27070831,2009.5,2008.8,5.92825073]
[1770463659178,6.31580825,2009.4,2008.8,5.92825073]
[1770463661382,5.50648922,2009.4,2008.8,5.92825073]
[1770463662385,6.31580825,2009.3,2008.8,5.92825073]